lending/lending_fUSD_20250122
["ID","MTS","AMOUNT","RATE_DAILY","PERIOD"]
[349960701,1737537051095,-1050.17,0.00019993,2]
[349960702,1737537051105,-971.52,0.00019993,2]
[349960703,1737537051114,-500.0,0.00019993,2]
[349960704,1737537051124,-1400.74,0.00019993,2]
[349960705,1737537051133,-648.6,0.00019993,2]
[349960706,1737537051142,-1565.65,0.00019993,2]
[349960707,1737537051151,-500.0,0.00019993,2]
[349960708,1737537051160,-584.64,0.00019993,2]
[349960709,1737537051170,-500.0,0.00019993,2]
[349960710,1737537051179,-1000.0,0.00019993,2]
[349960711,1737537051189,-761.81,0.00019993,2]
[349960712,1737537051198,-500.0,0.00019993,2]
[349960713,1737537051207,-500.0,0.00019993,2]
[349960714,1737537051217,-2223.57,0.00019993,2]
[349960715,1737537051226,-500.0,0.00019993,2]
[349960716,1737537051236,-1183.64,0.00019993,2]
[349960717,1737537051245,-833.94,0.00019993,2]
[349960718,1737537051254,-1009.95,0.00019993,2]
[349960719,1737537051264,-500.0,0.00019993,2]
[349960720,1737537051273,-500.0,0.00019993,2]
[349960721,1737537051283,-500.0,0.00019993,2]
[349960722,1737537051294,-828.3,0.00019993,2]
[349960723,1737537051303,-1797.0,0.000201,2]
[349960724,1737537051315,-205.17891859,0.0002015,2]
[349960725,1737537051326,-1427.79409836,0.00020167,2]
[349960726,1737537051337,-262.6178173,0.00020196,2]
[349960727,1737537051347,-173.96,0.00020212,2]
[349960728,1737537051359,-219.3264102,0.00020256,2]
[349960729,1737537051370,-500.0,0.00020265,2]
[349960730,1737537051380,-1875.62,0.00020265,2]
[349960731,1737537051391,-639.66,0.00020265,2]
[349960732,1737537051402,-922.03,0.00020265,2]
[349960733,1737537051413,-500.0,0.00020265,2]
[349960734,1737537051422,-500.0,0.00020265,2]
[349960735,1737537051432,-1022.45,0.00020265,2]
[349960736,1737537051442,-811.48,0.00020265,2]
[349960737,1737537051452,-698.87,0.00020265,2]
[349960738,1737537051461,-732.44,0.00020265,2]
[349960739,1737537051470,-1559.39,0.00020265,2]
[349960740,1737537051481,-500.0,0.00020265,2]
[349960741,1737537051491,-851.4,0.00020265,2]
[349960742,1737537051500,-1455.31,0.00020265,2]
[349960743,1737537051509,-1277.88,0.00020265,2]
[349960744,1737537051518,-646.15,0.00020265,2]
[349960745,1737537051528,-679.37,0.00020265,2]
[349960746,1737537051537,-1134.65,0.00020265,2]
[349960747,1737537051546,-2090.77,0.00020265,2]
[349960748,1737537051556,-807.91,0.00020265,2]
[349960749,1737537051564,-552.24,0.00020265,2]
[349960750,1737537051573,-500.0,0.00020265,2]
[349960751,1737537051583,-802.88,0.00020265,2]
[349960752,1737537051592,-1664.12,0.00020265,2]
[349960753,1737537051601,-500.0,0.00020265,2]
[349960754,1737537051610,-500.0,0.00020265,2]
[349960755,1737537051620,-999.47,0.00020265,2]
[349960756,1737537051629,-1037.10875048,0.00020266,5]
[349960757,1737537051638,-500.0,0.00020266,2]
[349960758,1737537051647,-500.0,0.00020266,2]
[349960759,1737537051657,-638.71,0.00020266,2]
[349960760,1737537051667,-837.88,0.00020266,2]
[349960761,1737537051676,-500.0,0.00020266,2]
[349960762,1737537051685,-500.0,0.00020266,2]
[349960763,1737537051694,-500.0,0.00020266,2]
[349960764,1737537051703,-500.0,0.00020266,2]
[349960765,1737537051712,-500.0,0.00020266,2]
[349960766,1737537051722,-500.0,0.00020266,2]
[349960767,1737537051731,-500.0,0.00020266,2]
[349960768,1737537051740,-590.89,0.00020266,2]
[349960769,1737537051750,-500.0,0.00020266,2]
[349960770,1737537051759,-649.92,0.00020266,2]
[349960771,1737537051768,-500.0,0.00020266,2]
[349960772,1737537051778,-500.0,0.00020266,2]
[349960773,1737537051787,-500.0,0.00020266,2]
[349960774,1737537051797,-786.99,0.00020266,2]
[349960775,1737537051806,-500.0,0.00020266,2]
[349960776,1737537051815,-959.596107,0.00020266,2]
[349960777,1737537051825,-500.0,0.00020266,2]
[349960778,1737537051834,-500.0,0.00020266,2]
[349960779,1737537051843,-500.0,0.00020266,2]
[349960780,1737537051852,-500.0,0.00020266,2]
[349960781,1737537051862,-500.0,0.00020266,2]
[349960782,1737537051871,-500.0,0.00020266,2]
[349960783,1737537051880,-905.3,0.00020266,2]
[349960784,1737537051889,-335.62657028,0.00020266,2]
[349960785,1737537051898,-500.0,0.00020266,2]
[349960786,1737537051907,-500.0,0.00020266,2]
[349960787,1737537051917,-500.0,0.00020266,2]
[349960788,1737537051927,-602.22,0.00020266,2]
[349960789,1737537051937,-205.18,0.00020266,2]
[349960790,1737537051946,-1063.2,0.00020266,2]
[349960791,1737537051955,-981.49,0.00020266,2]
[349960792,1737537051965,-500.0,0.00020266,2]
[349960793,1737537051974,-500.0,0.00020266,2]
[349960794,1737537051984,-500.0,0.00020266,2]
[349960795,1737537051994,-684.04,0.00020266,2]
[349960796,1737537052004,-500.0,0.00020266,2]
[349960797,1737537052014,-500.0,0.00020266,2]
[349960798,1737537052024,-500.0,0.00020266,2]
[349960799,1737537052033,-500.0,0.00020266,2]
[349960800,1737537052042,-500.0,0.00020266,2]
[349960801,1737537052052,-645.23093534,0.00020266,2]
[349960802,1737537052062,-500.0,0.00020266,2]
[349960803,1737537052074,-500.0,0.00020266,2]
[349960804,1737537052084,-1036.61,0.00020266,2]
[349960805,1737537052093,-687.36,0.00020266,2]
[349960806,1737537052103,-500.0,0.00020266,2]
[349960807,1737537052112,-500.0,0.00020266,2]
[349960808,1737537052121,-500.0,0.00020266,2]
[349960809,1737537052130,-721.36,0.00020266,2]
[349960810,1737537052140,-500.0,0.00020266,2]
[349960811,1737537052149,-794.87,0.00020266,2]
[349960812,1737537052158,-604.68,0.00020266,2]
[349960813,1737537052168,-500.0,0.00020266,2]
[349960814,1737537052177,-500.0,0.00020266,2]
[349960815,1737537052187,-635.51,0.00020266,2]
[349960816,1737537052195,-500.0,0.00020266,2]
[349960817,1737537052205,-500.0,0.00020266,2]
[349960818,1737537052214,-711.98,0.00020266,2]
[349960819,1737537052223,-500.0,0.00020266,2]
[349960820,1737537052233,-500.0,0.00020266,2]
[349960821,1737537052242,-1786.14,0.00020266,2]
[349960822,1737537052251,-500.0,0.00020266,2]
[349960823,1737537052260,-921.11,0.00020266,2]
[349960824,1737537052270,-500.0,0.00020266,2]
[349960825,1737537052279,-1710.78,0.00020266,2]
[349960826,1737537052289,-1271.98,0.00020266,2]
[349960827,1737537052298,-1008.05,0.00020266,2]
[349960828,1737537052307,-500.0,0.00020266,2]
[349960829,1737537052319,-658.5,0.00020266,2]
[349960830,1737537052329,-500.0,0.00020266,2]
[349960831,1737537052338,-594.1,0.00020266,2]
[349960832,1737537052347,-500.0,0.00020266,2]
[349960833,1737537052357,-500.0,0.00020266,2]
[349960834,1737537052366,-561.17,0.00020266,2]
[349960835,1737537052375,-500.0,0.00020266,2]
[349960836,1737537052385,-500.0,0.00020266,2]
[349960837,1737537052395,-3576.71,0.00020266,2]
[349960838,1737537052404,-1457.13,0.00020266,2]
[349960839,1737537052414,-657.76,0.00020266,2]
[349960840,1737537052423,-783.71,0.00020266,2]
[349960841,1737537052433,-1740.71,0.00020266,2]
[349960842,1737537052442,-1469.85,0.00020266,2]
[349960843,1737537052451,-764.23,0.00020266,2]
[349960844,1737537052460,-747.47,0.00020266,2]
[349960845,1737537052470,-1054.83,0.00020266,2]
[349960846,1737537052480,-2455.19,0.00020266,2]
[349960847,1737537052490,-785.11,0.00020266,2]
[349960848,1737537052502,-595.15,0.00020266,2]
[349960849,1737537052511,-1574.01,0.00020266,2]
[349960850,1737537052519,-500.0,0.00020266,2]
[349960851,1737537052528,-878.07,0.00020266,2]
[349960852,1737537052538,-937.53,0.00020266,2]
[349960853,1737537052547,-250.1822817,0.00020266,2]
[349960854,1737537052783,-249.8177183,0.00020266,2]
[349960855,1737537052793,-500.0,0.00020266,2]
[349960856,1737537052802,-1331.0,0.00020266,2]
[349960857,1737537052812,-721.3,0.00020266,2]
[349960858,1737537052821,-3246.16,0.00020266,2]
[349960859,1737537052831,-500.0,0.00020266,2]
[349960860,1737537052840,-2022.61,0.00020266,2]
[349960861,1737537052850,-799.05,0.00020266,2]
[349960862,1737537052860,-1112.05,0.00020266,2]
[349960863,1737537052870,-500.0,0.00020266,2]
[349960864,1737537052879,-1692.5294097,0.00020266,2]
[349960865,1737537053320,-536.575,0.00019443,2]
[349960866,1737537053340,-77.471474,0.00019443,2]
[349960867,1737537053349,-500.0,0.00019444,2]
[349960868,1737537053360,-614.046474,0.00019717,2]
[349960869,1737537053371,-1294.09,0.00019992,2]
[349960870,1737537053382,-876.7205903,0.00020266,2]
[349960871,1737537053394,-500.0,0.00020266,2]
[349960872,1737537053404,-584.98,0.00020266,2]
[349960873,1737537053415,-500.0,0.00020266,2]
[349960874,1737537053425,-305.6914617,0.00020266,2]
[349960875,1737537053507,-632.3185383,0.00020266,2]
[349960876,1737537053517,-193.61037534,0.00020266,2]
[349960877,1737537053539,-280.45949767,0.00020266,2]
[349960878,1737537118218,50000.0,0.00024,120]
[349960879,1737537193683,2000.0,0.00024,120]
[349960887,1737537293398,42590.97782946,0.00018,6]
[349960890,1737537573773,152.87,0.00010137,2]
[349960891,1737537795005,2000.0,0.00024,120]
[349960899,1737537963068,2791.59884992,0.0001,2]
[349960900,1737538033109,1632.012218,0.00024,120]
[349960903,1737538081386,41302.98503952,0.0001,2]
[349960904,1737538085234,-251.98,0.00017534,2]
[349960905,1737538085258,-469.17,0.00017534,2]
[349960906,1737538085280,-459.85,0.00018164,2]
[349960927,1737538231502,-40.15,0.00018164,2]
[349960928,1737538231512,-613.41,0.00018357,2]
[349960929,1737538232353,-584.357,0.00018357,2]
[349960930,1737538232363,-169.61,0.00018701,2]
[349960931,1737538232373,-250.0,0.00018706,2]
[349960932,1737538232383,-509.53,0.0001874,2]
[349960933,1737538232393,-717.97,0.00018773,2]
[349960934,1737538232403,-173.97,0.00018873,2]
[349960935,1737538232412,-723.16299,0.00019,7]
[349960936,1737538232424,-49276.83701,0.00019,7]
[349960937,1737538232433,-340.11239134,0.0001901,7]
[349960938,1737538232443,-1000.0,0.00019042,2]
[349960939,1737538232452,-156.89,0.00019252,2]
[349960940,1737538232462,-473.8,0.00019274,2]
[349960941,1737538232471,-382.96033996,0.00019343,2]
[349960942,1737538232481,-590.20382332,0.00019344,2]
[349960943,1737538232492,-38.13156868,0.00019344,2]
[349960944,1737538232504,-271.35763236,0.00019344,2]
[349960945,1737538232515,-482.02004,0.00019344,2]
[349960946,1737538232684,-74.34905896,0.00019344,2]
[349960947,1737538232695,-374.52384411,0.00019442,2]
[349960948,1737538232707,-125.47615589,0.00019442,2]
[349960949,1737538232717,-379.77411765,0.00019442,2]
[349960977,1737538237447,-1624.66588235,0.00019442,2]
[349960978,1737538237457,-675.04,0.00019442,2]
[349960979,1737538237467,-1005.97,0.00019442,2]
[349960980,1737538237476,-500.0,0.00019442,2]
[349960981,1737538237487,-500.0,0.00019442,2]
[349960982,1737538237499,-1060.86,0.00019442,2]
[349960983,1737538237508,-843.68,0.00019442,2]
[349960984,1737538237518,-500.0,0.00019442,2]
[349960985,1737538237527,-716.79,0.00019442,2]
[349960986,1737538237537,-781.19,0.00019442,2]
[349960987,1737538237547,-1597.38222071,0.00019442,2]
[349960988,1737538237610,-184.85777929,0.00019442,2]
[349960989,1737538237619,-500.0,0.00019442,2]
[349960990,1737538237628,-963.28,0.00019442,2]
[349960991,1737538237638,-1656.69,0.00019442,2]
[349960992,1737538237647,-86.27222071,0.00019442,2]
[349960993,1737538237666,-413.72777929,0.00019442,2]
[349960994,1737538237675,-1348.81,0.00019442,2]
[349960995,1737538237684,-417.65380371,0.00019442,2]
[349960996,1737538237695,-341.23619629,0.00019442,2]
[349960997,1737538237704,-685.31,0.00019442,2]
[349960998,1737538237713,-500.0,0.00019442,2]
[349960999,1737538237722,-1180.76,0.00019442,2]
[349961000,1737538237735,-2186.79,0.00019442,2]
[349961001,1737538237744,-848.61,0.00019442,2]
[349961002,1737538237754,-511.74381071,0.00019442,2]
[349961003,1737538237763,-560.74999316,0.00019442,2]
[349961004,1737538237783,-24.96000684,0.00019442,2]
[349961005,1737538237792,-500.0,0.00019442,2]
[349961006,1737538237802,-1772.51,0.00019442,2]
[349961008,1737538237811,-500.0,0.00019442,2]
[349961009,1737538237821,-469.52999316,0.00019442,2]
[349961016,1737538239495,-30.47000684,0.00019442,2]
[349961017,1737538239506,-2341.20360659,0.00019442,2]
[349961018,1737538239551,-915.40639341,0.00019442,2]
[349961019,1737538239562,-500.0,0.00019442,2]
[349961020,1737538239571,-500.0,0.00019442,2]
[349961021,1737538239581,-1042.29,0.00019442,2]
[349961022,1737538239590,-500.0,0.00019442,2]
[349961023,1737538239600,-500.0,0.00019442,2]
[349961024,1737538239609,-370.93246551,0.00019442,2]
[349961025,1737538239619,-500.0,0.00019442,2]
[349961026,1737538239628,-845.8,0.00019442,2]
[349961027,1737538239638,-500.0,0.00019442,2]
[349961028,1737538239647,-500.0,0.00019442,2]
[349961029,1737538239656,-937.265542,0.00019443,2]
[349961030,1737538239666,-156.155523,0.00019443,2]
[349961031,1737538239675,-599.592019,0.00019443,2]
[349961032,1737538239685,-500.0,0.00019443,2]
[349961033,1737538239695,-500.0,0.00019443,2]
[349961034,1737538239704,-500.0,0.00019443,2]
[349961035,1737538239714,-500.0,0.00019443,2]
[349961036,1737538239724,-531.03,0.00019443,2]
[349961037,1737538239736,-781.9,0.00019443,2]
[349961038,1737538239746,-500.0,0.00019443,2]
[349961039,1737538239755,-500.0,0.00019443,2]
[349961040,1737538239765,-176.237207,0.00019443,2]
[349961041,1737538239774,-500.0,0.00019443,2]
[349961042,1737538239783,-500.0,0.00019443,2]
[349961043,1737538239792,-1002.03,0.00019443,2]
[349961044,1737538239801,-406.3195136,0.00019443,2]
[349961045,1737538239810,-662.51,0.00019443,2]
[349961046,1737538239820,-575.76,0.00019443,2]
[349961047,1737538239829,-774.82,0.00019443,2]
[349961048,1737538239839,-500.0,0.00019443,2]
[349961049,1737538239848,-645.08,0.00019443,2]
[349961050,1737538239857,-500.0,0.00019443,2]
[349961051,1737538239866,-517.94,0.00019443,2]
[349961052,1737538239875,-766.26,0.00019443,2]
[349961053,1737538239885,-500.0,0.00019443,2]
[349961054,1737538239894,-526.03,0.00019443,2]
[349961055,1737538239903,-500.0,0.00019443,2]
[349961056,1737538239912,-500.0,0.00019443,2]
[349961057,1737538239921,-500.0,0.00019443,2]
[349961058,1737538239930,-687.8,0.00019443,2]
[349961059,1737538239939,-516.6,0.00019443,2]
[349961060,1737538239950,-636.98,0.00019443,2]
[349961061,1737538239961,-579.96,0.00019443,2]
[349961062,1737538239970,-500.0,0.00019443,2]
[349961063,1737538239981,-500.0,0.00019443,2]
[349961064,1737538239990,-500.0,0.00019443,2]
[349961065,1737538239999,-500.0,0.00019443,2]
[349961066,1737538240008,-500.0,0.00019443,2]
[349961067,1737538240018,-261.23500384,0.00019443,2]
[349961068,1737538240027,-829.65,0.00019443,2]
[349961069,1737538240036,-500.0,0.00019443,2]
[349961070,1737538240046,-500.0,0.00019443,2]
[349961071,1737538240055,-726.68,0.00019443,2]
[349961072,1737538240064,-500.0,0.00019443,2]
[349961073,1737538240073,-500.0,0.00019443,2]
[349961074,1737538240082,-500.0,0.00019443,2]
[349961075,1737538240091,-500.0,0.00019443,2]
[349961076,1737538240100,-500.0,0.00019443,2]
[349961077,1737538240110,-500.0,0.00019443,2]
[349961078,1737538240121,-500.0,0.00019443,2]
[349961079,1737538240130,-500.0,0.00019443,2]
[349961080,1737538240140,-928.97,0.00019443,2]
[349961081,1737538240150,-738.2,0.00019443,2]
[349961082,1737538240159,-500.0,0.00019443,2]
[349961083,1737538240168,-882.86,0.00019443,2]
[349961084,1737538240178,-924.85,0.00019443,2]
[349961085,1737538240188,-500.0,0.00019443,2]
[349961086,1737538240197,-500.0,0.00019443,2]
[349961087,1737538240206,-500.0,0.00019443,2]
[349961088,1737538240215,-1009.81,0.00019443,2]
[349961089,1737538240224,-1002.3,0.00019443,2]
[349961090,1737538240234,-957.86,0.00019443,2]
[349961091,1737538240243,-566.77,0.00019443,2]
[349961092,1737538240253,-500.0,0.00019443,2]
[349961093,1737538240263,-500.0,0.00019443,2]
[349961094,1737538240273,-500.0,0.00019443,2]
[349961095,1737538240282,-826.83,0.00019443,2]
[349961096,1737538240292,-500.0,0.00019443,2]
[349961097,1737538240301,-712.54,0.00019443,2]
[349961098,1737538240311,-500.0,0.00019443,2]
[349961099,1737538240320,-500.0,0.00019443,2]
[349961100,1737538240330,-500.0,0.00019443,2]
[349961101,1737538240339,-500.0,0.00019443,2]
[349961102,1737538240349,-500.0,0.00019443,2]
[349961103,1737538240359,-500.0,0.00019443,2]
[349961104,1737538240368,-500.0,0.00019443,2]
[349961105,1737538240378,-509.3,0.00019443,2]
[349961106,1737538240387,-500.0,0.00019443,2]
[349961107,1737538240396,-1008.52,0.00019443,2]
[349961108,1737538240406,-1031.45,0.00019443,2]
[349961109,1737538240415,-833.37,0.00019443,2]
[349961110,1737538240424,-710.67,0.00019443,2]
[349961111,1737538240434,-500.0,0.00019443,2]
[349961112,1737538240443,-500.0,0.00019443,2]
[349961113,1737538240453,-1084.63,0.00019443,2]
[349961114,1737538240462,-798.43,0.00019443,2]
[349961115,1737538240471,-500.0,0.00019443,2]
[349961116,1737538240481,-949.36,0.00019443,2]
[349961117,1737538240491,-500.0,0.00019443,2]
[349961118,1737538240501,-796.34,0.00019443,2]
[349961119,1737538240510,-620.27,0.00019443,2]
[349961120,1737538240519,-351.67257513,0.00019443,2]
[349961121,1737538240529,-518.88670747,0.00019443,2]
[349961122,1737538240538,-500.0,0.00019443,2]
[349961123,1737538240547,-657.35,0.00019443,2]
[349961124,1737538240556,-500.0,0.00019443,2]
[349961125,1737538240566,-500.0,0.00019443,2]
[349961126,1737538240576,-500.0,0.00019443,2]
[349961127,1737538240585,-500.0,0.00019443,2]
[349961128,1737538240594,-694.65,0.00019443,2]
[349961129,1737538240603,-500.0,0.00019443,2]
[349961130,1737538240612,-597.53,0.00019443,2]
[349961131,1737538240622,-500.0,0.00019443,2]
[349961132,1737538240631,-1280.08,0.00019443,2]
[349961133,1737538240640,-705.94,0.00019443,2]
[349961134,1737538240650,-500.0,0.00019443,2]
[349961135,1737538240659,-1930.76,0.00019443,2]
[349961136,1737538240668,-500.0,0.00019443,2]
[349961137,1737538240678,-500.0,0.00019443,2]
[349961138,1737538240687,-500.0,0.00019443,2]
[349961139,1737538240696,-1787.58,0.00019443,2]
[349961140,1737538240706,-997.82,0.00019443,2]
[349961141,1737538240715,-580.24,0.00019443,2]
[349961142,1737538240725,-500.0,0.00019443,2]
[349961143,1737538240737,-1050.06,0.00019443,2]
[349961144,1737538240746,-696.89,0.00019443,2]
[349961145,1737538240756,-2286.79,0.00019443,2]
[349961146,1737538240766,-1413.63,0.00019443,2]
[349961147,1737538240776,-500.0,0.00019443,2]
[349961148,1737538240786,-671.94,0.00019443,2]
[349961149,1737538240795,-500.0,0.00019443,2]
[349961150,1737538240804,-153.695406,0.00019443,2]
[349961151,1737538240814,-4936.21,0.00019443,2]
[349961152,1737538240823,-500.0,0.00019443,2]
[349961153,1737538240832,-500.0,0.00019443,2]
[349961154,1737538240841,-500.0,0.00019443,2]
[349961155,1737538240850,-8437.17,0.00019443,2]
[349961156,1737538240859,-1499.18,0.00019443,2]
[349961157,1737538240868,-500.0,0.00019443,2]
[349961158,1737538240877,-500.0,0.00019443,2]
[349961159,1737538240886,-918.57,0.00019443,2]
[349961160,1737538240895,-813.76,0.00019443,2]
[349961161,1737538240904,-650.13,0.00019443,2]
[349961162,1737538240914,-500.0,0.00019443,2]
[349961163,1737538240923,-1040.18,0.00019443,2]
[349961164,1737538240932,-3685.27,0.00019443,2]
[349961165,1737538240942,-579.29,0.00019443,2]
[349961166,1737538240951,-836.42,0.00019443,2]
[349961167,1737538240960,-534.02,0.00019443,2]
[349961168,1737538240970,-1105.8,0.00019443,2]
[349961169,1737538240979,-500.0,0.00019443,2]
[349961170,1737538240988,-1805.63,0.00019443,2]
[349961171,1737538240999,-1518.6,0.00019443,2]
[349961172,1737538241008,-872.42,0.00019443,2]
[349961173,1737538241018,-1673.84,0.00019443,2]
[349961174,1737538241027,-713.77,0.00019443,2]
[349961175,1737538241036,-500.0,0.00019443,2]
[349961176,1737538241046,-969.31,0.00019443,2]
[349961177,1737538241055,-2518.97,0.00019443,2]
[349961178,1737538241065,-500.0,0.00019443,2]
[349961179,1737538241075,-2362.7,0.00019443,2]
[349961180,1737538241084,-784.51,0.00019443,2]
[349961181,1737538241094,-500.0,0.00019443,2]
[349961182,1737538241103,-899.56,0.00019443,2]
[349961183,1737538241112,-1046.95,0.00019443,2]
[349961184,1737538241121,-500.0,0.00019443,2]
[349961185,1737538241132,-2277.1,0.00019443,2]
[349961186,1737538241141,-273.35475304,0.00019443,2]
[349961187,1737538241150,-940.23,0.00019443,2]
[349961188,1737538241159,-1469.64,0.00019443,2]
[349961189,1737538241169,-500.0,0.00019443,2]
[349961190,1737538241179,-512.43796236,0.00019443,2]
[349961191,1737538241188,-1189.43,0.00019443,2]
[349961192,1737538241197,-3503.4,0.00019443,2]
[349961193,1737538241206,-500.0,0.00019443,2]
[349961194,1737538241215,-1372.08,0.00019443,2]
[349961195,1737538241224,-263.41,0.00019443,2]
[349961196,1737538241233,-906.49,0.00019443,2]
[349961197,1737538241243,-1043.77,0.00019443,2]
[349961198,1737538241253,-924.18,0.00019443,2]
[349961199,1737538241263,-557.7,0.00019443,2]
[349961200,1737538241272,-1521.73,0.00019443,2]
[349961201,1737538241280,-500.0,0.00019443,2]
[349961202,1737538241289,-2487.74,0.00019443,2]
[349961203,1737538241299,-603.06,0.00019443,2]
[349961204,1737538241308,-500.0,0.00019443,2]
[349961205,1737538241318,-500.0,0.00019443,2]
[349961206,1737538241327,-2165.48,0.00019443,2]
[349961207,1737538241337,-1043.17,0.00019443,2]
[349961208,1737538241346,-500.0,0.00019443,2]
[349961209,1737538241355,-681.54,0.00019443,2]
[349961210,1737538241365,-2717.23,0.00019443,2]
[349961211,1737538241374,-500.0,0.00019443,2]
[349961212,1737538241383,-1000.0,0.00019443,2]
[349961213,1737538241393,-2638.8,0.00019443,2]
[349961214,1737538241402,-500.0,0.00019443,2]
[349961215,1737538241411,-500.0,0.00019443,2]
[349961216,1737538241420,-1219.77,0.00019443,2]
[349961217,1737538241429,-768.67,0.00019443,2]
[349961218,1737538241439,-500.0,0.00019443,2]
[349961219,1737538241449,-615.94,0.00019443,2]
[349961220,1737538241458,-500.0,0.00019443,2]
[349961221,1737538241468,-500.0,0.00019443,2]
[349961222,1737538241477,-500.0,0.00019443,2]
[349961223,1737538241490,-898.24,0.00019443,2]
[349961224,1737538241500,-500.0,0.00019443,2]
[349961225,1737538241509,-500.0,0.00019443,2]
[349961226,1737538241519,-2155.69,0.00019443,2]
[349961227,1737538241528,-500.0,0.00019443,2]
[349961228,1737538241537,-585.41,0.00019443,2]
[349961229,1737538241547,-523.53,0.00019443,2]
[349961230,1737538241556,-500.0,0.00019443,2]
[349961231,1737538241566,-500.0,0.00019443,2]
[349961232,1737538241576,-500.0,0.00019443,2]
[349961233,1737538241585,-3694.04,0.00019443,2]
[349961234,1737538241594,-1953.94,0.00019443,2]
[349961235,1737538241603,-1020.11,0.00019443,2]
[349961236,1737538241613,-2300.7,0.00019443,2]
[349961237,1737538241622,-542.85,0.00019443,2]
[349961238,1737538241631,-813.07,0.00019443,2]
[349961239,1737538241641,-500.0,0.00019443,2]
[349961240,1737538241650,-500.0,0.00019443,2]
[349961241,1737538241659,-526.92,0.00019443,2]
[349961242,1737538241669,-500.0,0.00019443,2]
[349961243,1737538241679,-1234.83,0.00019443,2]
[349961244,1737538241688,-500.0,0.00019443,2]
[349961245,1737538241697,-843.27,0.00019443,2]
[349961246,1737538241707,-733.29,0.00019443,2]
[349961247,1737538241716,-500.0,0.00019443,2]
[349961248,1737538241728,-500.0,0.00019443,2]
[349961249,1737538241739,-1063.94,0.00019443,2]
[349961250,1737538241749,-500.0,0.00019443,2]
[349961251,1737538241759,-629.37,0.00019443,2]
[349961252,1737538241770,-775.51,0.00019443,2]
[349961253,1737538241779,-1268.07,0.00019443,2]
[349961254,1737538241788,-1356.74,0.00019443,2]
[349961255,1737538241797,-500.0,0.00019443,2]
[349961256,1737538241806,-500.0,0.00019443,2]
[349961257,1737538241815,-2043.6,0.00019443,2]
[349961258,1737538241824,-500.0,0.00019443,2]
[349961259,1737538241833,-515.34415788,0.00019443,2]
[349961260,1737538241843,-500.0,0.00019443,2]
[349961261,1737538241852,-500.0,0.00019443,2]
[349961262,1737538241862,-500.0,0.00019443,2]
[349961263,1737538241871,-974.46,0.00019443,2]
[349961264,1737538241880,-11166.60222849,0.00019443,2]
[349961265,1737538241972,-2178.4,0.00019443,2]
[349961266,1737538241983,-2159.6573997,0.00019443,2]
[349961267,1737538241995,-5300.05645754,0.00019443,2]
[349961268,1737538242021,-583.35,0.00019443,2]
[349961271,1737538242875,-500.0,0.00019442,2]
[349961272,1737538242886,-500.0,0.00019442,2]
[349961273,1737538242895,-500.0,0.00019443,2]
[349961274,1737538242905,-99954.50839734,0.00019443,2]